fUSD/lending_fUSD_20251217
["ID","MTS","AMOUNT","RATE_DAILY","PERIOD"]
[398877303,1765951839790,-500.0,0.00017184,2]
[398877304,1765951839803,-500.0,0.00017184,2]
[398877305,1765951839815,-500.0,0.00017184,2]
[398877306,1765951839829,-500.0,0.00017184,2]
[398877307,1765951839841,-500.0,0.00017184,2]
[398877308,1765951839853,-500.0,0.00017184,2]
[398877309,1765951839866,-500.0,0.00017184,2]
[398877310,1765951839877,-500.0,0.00017184,2]
[398877311,1765951839889,-500.0,0.00017184,2]
[398877312,1765951839900,-500.0,0.00017184,2]
[398877313,1765951839911,-500.0,0.00017184,2]
[398877314,1765951839922,-500.0,0.00017184,2]
[398877315,1765951839934,-500.0,0.00017184,2]
[398877316,1765951839947,-161.17014672,0.00017184,2]
[398877317,1765951839959,-500.0,0.00017184,2]
[398877318,1765951839970,-500.0,0.00017184,2]
[398877319,1765951839981,-620.0,0.00017184,2]
[398877320,1765951839993,-500.0,0.00017184,2]
[398877321,1765951840004,-500.0,0.00017184,2]
[398877322,1765951840016,-500.0,0.00017184,2]
[398877323,1765951840028,-500.0,0.00017184,2]
[398877324,1765951840039,-500.0,0.00017184,2]
[398877325,1765951840053,-1000.0,0.00017184,2]
[398877326,1765951840065,-190.64000361,0.00017184,2]
[398877327,1765951840076,-1000.0,0.00017184,2]
[398877328,1765951840087,-1000.0,0.00017184,2]
[398877329,1765951840100,-566.78,0.0001726,3]
[398877330,1765951840116,-2351.0,0.00017269,2]
[398877331,1765951840128,-2000.0,0.000173,2]
[398877332,1765951840139,-500.0,0.00017318,2]
[398877333,1765951840150,-658.77,0.00017343,2]
[398877366,1765951840853,-207.4,0.00017393,2]
[398877367,1765951840879,-4162.89415758,0.00017487,2]
[398877368,1765951840911,-1374.83233107,0.00017521,2]
[398877369,1765951840932,-566.78,0.00017534,4]
[398877370,1765951840941,-600.0,0.00017534,2]
[398877371,1765951840951,-12793.85,0.00017681,2]
[398877372,1765951840961,-1183.06219401,0.00017689,2]
[398877373,1765951840971,-1746.66,0.00017721,2]
[398877374,1765951840980,-1234.0,0.00017732,2]
[398877375,1765951840990,-574.12855637,0.00017732,2]
[398877376,1765951840999,-566.78,0.00017808,5]
[398877377,1765951841008,-500.0,0.00017863,2]
[398877378,1765951841017,-1600.0,0.00017888,2]
[398877379,1765951841027,-736.0,0.00017925,2]
[398877380,1765951841036,-4162.89415758,0.00017958,2]
[398877381,1765951841046,-1374.83233107,0.0001798,2]
[398877382,1765951841056,-3028.58960875,0.00018,2]
[398877383,1765951841065,-161.32,0.00018,6]
[398877384,1765951841074,-191.0,0.00018015,2]
[398877385,1765951841084,-191.0,0.00018066,2]
[398877386,1765951841093,-566.78,0.00018082,6]
[398877387,1765951841103,-1000.0,0.00018082,2]
[398877388,1765951841111,-600.0,0.00018082,2]
[398877389,1765951841121,-250.0,0.000181,2]
[398877390,1765951841130,-191.0,0.00018165,2]
[398877391,1765951841139,-500.0,0.00018192,2]
[398877392,1765951841149,-1234.0,0.0001828,2]
[398877393,1765951841158,-595.37131296,0.0001828,2]
[398877394,1765951841167,-1183.06219401,0.00018295,2]
[398877395,1765951841176,-664.88,0.00018302,2]
[398877396,1765951841185,-658.69,0.00018302,2]
[398877397,1765951841194,-658.69,0.00018302,2]
[398877398,1765951841203,-658.69,0.00018302,2]
[398877399,1765951841213,-658.69,0.00018302,2]
[398877400,1765951841222,-566.78,0.00018356,7]
[398877401,1765951841231,-4162.89415758,0.00018429,2]
[398877402,1765951841240,-1000.0,0.00018433,2]
[398877403,1765951841250,-1374.83233107,0.0001844,2]
[398877404,1765951841259,-191.0,0.00018475,2]
[398877405,1765951841268,-3999.99999999,0.000185,2]
[398877406,1765951841278,-191.0,0.00018533,2]
[398877407,1765951841288,-311.1,0.00018553,2]
[398877408,1765951841297,-219.13213765,0.00018553,2]
[398877409,1765951841308,-642.94,0.00018553,2]
[398877410,1765951841317,-191.0,0.00018588,2]
[398877411,1765951841326,-2480.31920199,0.0001862,2]
[398877412,1765951841335,-566.78,0.0001863,8]
[398877413,1765951841344,-600.0,0.0001863,2]
[398877414,1765951841353,-191.0,0.0001865,2]
[398877415,1765951841363,-150.0,0.00018699,2]
[398877416,1765951841372,-500.0,0.00018699,2]
[398877417,1765951841381,-150.0,0.00018699,2]
[398877418,1765951841391,-150.0,0.00018699,2]
[398877419,1765951841400,-500.0,0.00018699,2]
[398877420,1765951841409,-150.0,0.00018699,2]
[398877421,1765951841418,-150.0,0.00018699,2]
[398877422,1765951841427,-150.0,0.00018699,2]
[398877423,1765951841436,-150.55930981,0.00018699,2]
[398877424,1765951841445,-150.0,0.00018699,2]
[398877425,1765951841453,-150.0,0.00018699,2]
[398877426,1765951841462,-150.0,0.00018699,2]
[398877427,1765951841471,-150.0,0.00018699,2]
[398877428,1765951841480,-150.0,0.00018699,2]
[398877429,1765951841488,-180.92510742,0.00018699,2]
[398877430,1765951841497,-500.0,0.00018699,2]
[398877431,1765951841506,-563.0,0.00018699,2]
[398877432,1765951841516,-442.0,0.00018699,2]
[398877433,1765951841526,-150.0,0.00018699,2]
[398877434,1765951841535,-2329.0,0.00018699,2]
[398877435,1765951841544,-500.0,0.00018699,2]
[398877436,1765951841553,-500.0,0.00018699,2]
[398877437,1765951841562,-500.0,0.00018699,2]
[398877438,1765951841570,-500.0,0.00018699,2]
[398877439,1765951841579,-150.0,0.00018699,2]
[398877440,1765951841588,-150.0,0.00018699,2]
[398877441,1765951841597,-150.0,0.00018699,2]
[398877442,1765951841606,-500.0,0.00018699,2]
[398877443,1765951841615,-500.0,0.00018699,2]
[398877444,1765951841623,-150.0,0.00018699,2]
[398877445,1765951841632,-150.0,0.00018699,2]
[398877446,1765951841641,-500.0,0.00018699,2]
[398877447,1765951841650,-150.0,0.00018699,2]
[398877448,1765951841659,-150.0,0.00018699,2]
[398877449,1765951841668,-150.0,0.00018699,2]
[398877450,1765951841677,-433.0,0.00018699,2]
[398877451,1765951841686,-150.0,0.00018699,2]
[398877452,1765951841695,-191.0,0.00018704,2]
[398877453,1765951841704,-1000.0,0.0001876,2]
[398877454,1765951841713,-200.0,0.00018761,2]
[398877455,1765951841722,-2564.26962511,0.00018772,2]
[398877456,1765951841731,-275.0,0.00018793,2]
[398877457,1765951841741,-9332.0,0.000188,2]
[398877458,1765951841750,-1000.0,0.000188,2]
[398877459,1765951841759,-36164.72007198,0.000188,2]
[398877460,1765951841768,-191.0,0.00018807,2]
[398877461,1765951841777,-191.0,0.00018822,2]
[398877462,1765951841790,-1234.0,0.00018828,2]
[398877463,1765951841800,-617.40005154,0.00018828,2]
[398877464,1765951841809,-191.0,0.00018832,2]
[398877465,1765951841818,-500.0,0.00018836,2]
[398877466,1765951841828,-153.17324755,0.00018836,2]
[398877467,1765951841838,-200.0,0.00018836,2]
[398877468,1765951841847,-500.0,0.00018836,2]
[398877469,1765951841856,-150.0,0.00018836,2]
[398877470,1765951841865,-213.38124582,0.00018836,2]
[398877471,1765951841875,-163.14521453,0.00018836,2]
[398877472,1765951841884,-151.49893375,0.00018836,2]
[398877473,1765951841893,-150.0,0.00018836,2]
[398877474,1765951841903,-150.0,0.00018836,2]
[398877475,1765951841912,-150.0,0.00018836,2]
[398877476,1765951841922,-150.0,0.00018836,2]
[398877477,1765951841931,-500.0,0.00018836,2]
[398877478,1765951841940,-563.0,0.00018836,2]
[398877479,1765951841949,-442.0,0.00018836,2]
[398877480,1765951841958,-2329.0,0.00018836,2]
[398877481,1765951841967,-500.0,0.00018836,2]
[398877482,1765951841976,-500.0,0.00018836,2]
[398877483,1765951841985,-500.0,0.00018836,2]
[398877484,1765951841994,-500.0,0.00018836,2]
[398877485,1765951842004,-159.46370897,0.00018836,2]
[398877486,1765951842013,-150.0,0.00018836,2]
[398877487,1765951842022,-500.0,0.00018836,2]
[398877488,1765951842031,-500.0,0.00018836,2]
[398877489,1765951842041,-500.0,0.00018836,2]
[398877490,1765951842050,-250.0,0.00018836,2]
[398877491,1765951842060,-150.0,0.00018836,2]
[398877492,1765951842069,-250.0,0.00018836,2]
[398877493,1765951842078,-433.0,0.00018836,2]
[398877494,1765951842088,-191.0,0.00018873,2]
[398877495,1765951842097,-150.0,0.00018873,2]
[398877496,1765951842106,-200.0,0.00018873,2]
[398877497,1765951842117,-182.777,0.00018873,2]
[398877498,1765951842126,-150.413,0.00018873,2]
[398877499,1765951842135,-150.0,0.00018873,2]
[398877500,1765951842144,-150.0,0.00018873,2]
[398877501,1765951842153,-150.0,0.00018873,2]
[398877502,1765951842162,-150.0,0.00018873,2]
[398877503,1765951842171,-150.0,0.00018873,2]
[398877504,1765951842180,-151.0,0.00018873,2]
[398877505,1765951842189,-150.0,0.00018873,2]
[398877506,1765951842199,-612.0,0.00018873,2]
[398877507,1765951842208,-3453.0,0.00018873,2]
[398877508,1765951842217,-1325.0,0.00018873,2]
[398877510,1765951842226,-1607.0,0.00018873,2]
[398877512,1765951842235,-1261.0,0.00018873,2]
[398877514,1765951842244,-564.0,0.00018873,2]
[398877516,1765951842253,-911.0,0.00018873,2]
[398877518,1765951842262,-1198.21,0.00018873,2]
[398877520,1765951842272,-563.0,0.00018873,2]
[398877522,1765951842281,-4799.0,0.00018873,2]
[398877524,1765951842290,-2427.0,0.00018873,2]
[398877526,1765951842299,-178.64964846,0.00018878,2]
[398877528,1765951842308,-5799.0702176,0.000189,2]
[398877529,1765951842318,-248.3672316,0.000189,3]
[398877530,1765951842327,-10000.0,0.000189,2]
[398877531,1765951842336,-1189.23002094,0.000189,2]
[398877532,1765951842345,-1374.83233107,0.000189,2]
[398877533,1765951842354,-1183.06219401,0.000189,2]
[398877534,1765951842364,-6687.07741318,0.000189,2]
[398877535,1765951842373,-4162.89415758,0.000189,2]
[398877536,1765951842382,-3457.53642493,0.00018904,2]
[398877537,1765951842391,-566.78,0.00018904,9]
[398877538,1765951842400,-191.0,0.00018946,2]
[398877539,1765951842409,-500.0,0.00018973,2]
[398877540,1765951842418,-500.0,0.00018973,2]
[398877541,1765951842427,-256.37469814,0.00018973,2]
[398877542,1765951842437,-150.0,0.00018973,2]
[398877543,1765951842446,-150.0,0.00018973,2]
[398877544,1765951842455,-500.0,0.00018973,2]
[398877545,1765951842464,-563.0,0.00018973,2]
[398877546,1765951842474,-442.0,0.00018973,2]
[398877547,1765951842483,-2329.0,0.00018973,2]
[398877548,1765951842493,-500.0,0.00018973,2]
[398877549,1765951842502,-500.0,0.00018973,2]
[398877550,1765951842511,-500.0,0.00018973,2]
[398877551,1765951842521,-500.0,0.00018973,2]
[398877552,1765951842532,-150.0,0.00018973,2]
[398877553,1765951842541,-500.0,0.00018973,2]
[398877554,1765951842551,-500.0,0.00018973,2]
[398877555,1765951842560,-500.0,0.00018973,2]
[398877556,1765951842569,-433.0,0.00018973,2]
[398877557,1765951842578,-191.0,0.00018985,2]
[398877558,1765951842588,-9604.4635097,0.00018995,2]
[398877559,1765951842597,-127467.6305104,0.00018995,2]
[398877560,1765951842606,-2412.4076766,0.00018995,2]
[398877561,1765951842615,-82420.3252334,0.00018995,2]
[398877562,1765951842625,-79942.2572303,0.00018995,2]
[398877563,1765951842634,-35379.8962998,0.00018995,2]
[398877564,1765951842644,-359.5676821,0.00018995,2]
[398877565,1765951842653,-1871.5805548,0.00018995,2]
[398877566,1765951842663,-3292.0,0.00018996,2]
[398877567,1765951842673,-362.18898238,0.00019,2]
[398877568,1765951842683,-226095.84309618,0.00019,2]
[398877592,1765951843958,-78075.63445124,0.00019,2]
[398877593,1765951844163,-290.1006497,0.00015507,2]
[398877594,1765951844173,-1269.08975216,0.00018873,2]
[398877595,1765951844188,-5254.91024784,0.00018873,2]
[398877596,1765951844197,-20327.81130971,0.00019,2]
[398877597,1765951845441,-7415.94707886,0.00019,2]
[398877598,1765951845663,-332.818322,0.00019,2]
[398877599,1765951845674,-1728.23540003,0.00019,2]
[398877600,1765951845686,-501.87662554,0.00019,2]
[398877601,1765951845698,-332.818322,0.00019,2]
[398877608,1765952317523,153.34,7.627e-05,2]
[398877609,1765952317713,153.34,9.534e-05,2]
[398877610,1765952317910,153.34,0.0001144,2]
[398877636,1765953031595,-153.34,0.00013347,2]
[398877637,1765953031604,-96.66,0.000142,2]
[398877638,1765953031717,-53.34,0.000142,2]
[398877639,1765953031727,-150.0,0.000142,2]
[398877640,1765953031736,-150.0,0.000142,2]
[398877641,1765953031745,-1200.0,0.00014272,2]
[398877642,1765953031754,-300.0,0.00014272,2]
[398877643,1765953031763,-150.0,0.00014272,2]
[398877644,1765953031772,-151.93,0.00014273,2]
[398877646,1765953031781,-152.2,0.00014273,2]
[398877648,1765953031791,-152.12,0.00014273,2]
[398877649,1765953031799,-152.49,0.00014273,2]
[398877651,1765953031808,-501.17585924,0.00014273,2]
[398877674,1765953032171,-500.0,0.00014273,2]
[398877675,1765953032184,-427.89461825,0.00014273,2]
[398877676,1765953032195,-72.94234955,0.00014273,2]
[398877677,1765953032204,-591.9541487,0.00014273,2]
[398877678,1765953032214,-500.0,0.00014273,2]
[398877679,1765953032223,-500.0,0.00014273,2]
[398877680,1765953032231,-500.0,0.00014273,2]
[398877681,1765953032242,-500.0,0.00014273,2]
[398877682,1765953032252,-155.18423664,0.00014273,2]
[398877683,1765953032262,-500.0,0.00014273,2]
[398877684,1765953032272,-246.34429386,0.00014273,2]
[398877685,1765953032283,-253.65570614,0.00014273,2]
[398877686,1765953032294,-500.0,0.00014273,2]
[398877687,1765953032304,-500.0,0.00014273,2]
[398877688,1765953032313,-500.0,0.00014273,2]
[398877689,1765953032324,-328.7195577,0.00014273,2]
[398877690,1765953032335,-171.2804423,0.00014273,2]
[398877691,1765953032344,-500.0,0.00014273,2]
[398877692,1765953032353,-105.00239013,0.00014273,2]
[398877693,1765953032364,-394.99760987,0.00014273,2]
[398877694,1765953032373,-160.66447965,0.00014273,2]
[398877695,1765953032383,-339.33552035,0.00014273,2]
[398877696,1765953032393,-500.0,0.00014273,2]
[398877697,1765953032403,-500.94325917,0.00014273,2]
[398877698,1765953032414,-302.79243627,0.00014273,2]
[398877699,1765953032423,-500.0,0.00014273,2]
[398877700,1765953032434,-500.0,0.00014273,2]
[398877701,1765953032443,-95.26476794,0.00014273,2]
[398877726,1765953038631,-404.73523206,0.00014273,2]
[398877727,1765953038640,-299.08759096,0.00014821,2]
[398877728,1765953038650,-1000.0,0.00014821,2]
[398877729,1765953038659,-2026.56763146,0.00014833,2]
[398877730,1765953038670,-937.92373914,0.00014833,2]
[398877731,1765953038681,-1966.54436356,0.00014833,2]
[398877732,1765953038692,-755068.96426584,0.00014833,2]
[398877733,1765953038701,-6180.4875,0.00014933,2]
[398877734,1765953038710,-532.0009,0.00014933,2]
[398877735,1765953038720,-1176.94064951,0.00015,2]
[398877736,1765953038729,-166.66,0.00015022,2]
[398877737,1765953038739,-500.0,0.00015024,2]
[398877738,1765953038748,-500.0,0.00015024,2]
[398877739,1765953038757,-500.0,0.00015024,2]
[398877740,1765953038766,-500.0,0.00015024,2]
[398877741,1765953038775,-500.0,0.00015024,2]
[398877742,1765953038784,-500.0,0.00015024,2]
[398877743,1765953038793,-500.0,0.00015024,2]
[398877744,1765953038803,-500.0,0.00015024,2]
[398877745,1765953038812,-200.0,0.00015024,2]
[398877746,1765953038821,-200.0,0.00015024,2]
[398877747,1765953038831,-151.0,0.00015024,2]
[398877748,1765953038840,-151.0,0.00015024,2]
[398877749,1765953038849,-151.0,0.00015024,2]
[398877750,1765953038859,-151.0,0.00015024,2]
[398877751,1765953038869,-151.0,0.00015024,2]
[398877752,1765953038878,-151.0,0.00015024,2]
[398877753,1765953038887,-153.63110906,0.00015024,2]
[398877754,1765953038896,-151.0,0.00015024,2]
[398877755,1765953038906,-151.0,0.00015024,2]
[398877756,1765953038915,-151.0,0.00015024,2]
[398877757,1765953038924,-151.0,0.00015024,2]
[398877758,1765953038934,-151.0,0.00015024,2]
[398877759,1765953038943,-151.0,0.00015024,2]
[398877760,1765953038952,-151.0,0.00015024,2]
[398877761,1765953038961,-151.0,0.00015024,2]
[398877762,1765953038970,-151.0,0.00015024,2]
[398877763,1765953038980,-161.05928193,0.00015024,2]
[398877764,1765953038990,-2207.221,0.0001503,2]
[398877765,1765953038999,-500.0,0.00015031,2]
[398877766,1765953039008,-187.63361989,0.00015031,2]
[398877767,1765953039017,-576.24507645,0.00015031,2]
[398877768,1765953039027,-500.0,0.00015031,2]
[398877769,1765953039036,-500.0,0.00015031,2]
[398877770,1765953039045,-500.0,0.00015031,2]
[398877771,1765953039055,-500.0,0.00015031,2]
[398877772,1765953039064,-614.06263129,0.00015031,2]
[398877773,1765953039073,-500.0,0.00015031,2]
[398877774,1765953039083,-500.0,0.00015031,2]
[398877775,1765953039092,-376.54216611,0.00015031,2]
[398877776,1765953039102,-500.0,0.00015031,2]
[398877777,1765953039111,-500.0,0.00015031,2]
[398877778,1765953039121,-259.53291082,0.00015031,2]
[398877779,1765953039131,-500.0,0.00015031,2]
[398877780,1765953039140,-500.0,0.00015031,2]
[398877781,1765953039149,-500.0,0.00015031,2]
[398877782,1765953039159,-500.0,0.00015031,2]
[398877783,1765953039168,-500.0,0.00015031,2]
[398877784,1765953039178,-500.0,0.00015031,2]
[398877785,1765953039189,-500.0,0.00015031,2]
[398877786,1765953039200,-500.0,0.00015031,2]
[398877787,1765953039209,-500.0,0.00015031,2]
[398877788,1765953039219,-500.0,0.00015031,2]
[398877789,1765953039228,-577.09606151,0.00015031,2]
[398877790,1765953039238,-500.0,0.00015031,2]
[398877791,1765953039247,-500.0,0.00015031,2]
[398877792,1765953039257,-500.0,0.00015031,2]
[398877793,1765953039267,-500.0,0.00015031,2]
[398877794,1765953039277,-500.0,0.00015031,2]
[398877795,1765953039286,-500.0,0.00015031,2]
[398877796,1765953039296,-500.0,0.00015031,2]
[398877797,1765953039305,-500.0,0.00015031,2]
[398877798,1765953039314,-181.84972126,0.00015032,2]
[398877799,1765953039323,-500.0,0.00015032,2]
[398877800,1765953039332,-279.99666033,0.00015032,2]
[398877801,1765953039341,-500.0,0.00015032,2]
[398877802,1765953039350,-500.0,0.00015032,2]
[398877803,1765953039360,-500.0,0.00015032,2]
[398877804,1765953039369,-500.0,0.00015032,2]
[398877805,1765953039379,-500.0,0.00015032,2]
[398877806,1765953039388,-509.78781684,0.00015032,2]
[398877807,1765953039398,-500.0,0.00015032,2]
[398877808,1765953039407,-207.92024004,0.00015032,2]
[398877809,1765953039416,-500.0,0.00015032,2]
[398877810,1765953039426,-500.0,0.00015032,2]
[398877811,1765953039435,-500.0,0.00015032,2]
[398877812,1765953039444,-510.6542677,0.00015032,2]
[398877813,1765953039453,-500.0,0.00015032,2]
[398877814,1765953039462,-500.0,0.00015032,2]
[398877815,1765953039471,-500.0,0.00015032,2]
[398877816,1765953039480,-500.0,0.00015032,2]
[398877817,1765953039489,-500.0,0.00015032,2]
[398877818,1765953039498,-500.0,0.00015032,2]
[398877819,1765953039508,-487.452036,0.00015073,2]
[398877820,1765953039517,-500.0,0.00015073,2]
[398877821,1765953039526,-500.0,0.00015073,2]
[398877822,1765953039535,-500.0,0.00015073,2]
[398877823,1765953039544,-500.0,0.00015073,2]
[398877824,1765953039554,-500.0,0.00015073,2]
[398877825,1765953039563,-500.0,0.00015073,2]
[398877826,1765953039572,-500.0,0.00015073,2]
[398877827,1765953039581,-500.0,0.00015073,2]
[398877828,1765953039590,-500.0,0.00015073,2]
[398877829,1765953039599,-153.34,0.00015254,2]
[398877830,1765953039610,-465.0,0.0001526,2]
[398877831,1765953039628,-899.0,0.00015335,2]
[398877832,1765953039638,-1500.0,0.00015368,2]
[398877833,1765953039647,-412.0,0.00015392,2]
[398877834,1765953039656,-255.0,0.00015399,2]
[398877835,1765953039665,-166.66,0.00015517,2]
[398877836,1765953039674,-500.0,0.00015534,2]
[398877837,1765953039683,-174.83,0.00015579,2]
[398877838,1765953039692,-500.0,0.00015589,2]
[398877839,1765953039702,-706.20713686,0.00015621,2]
[398877840,1765953039712,-1000.0,0.00015621,2]
[398877841,1765953039722,-1000.0,0.00015621,2]
[398877842,1765953039732,-1000.0,0.00015621,2]
[398877843,1765953039740,-1001.86166737,0.00015621,2]
[398877844,1765953039750,-359.47056336,0.00015621,2]
[398877845,1765953039759,-1000.0,0.00015621,2]
[398877846,1765953039768,-500.0,0.00015621,2]
[398877847,1765953039777,-1002.01227211,0.00015621,2]
[398877848,1765953039787,-1680.0,0.00015699,2]
[398877849,1765953039796,-900.0,0.00015896,2]
[398877850,1765953039806,-4764.84667947,0.000159,2]
[398877851,1765953039815,-336.20580245,0.000159,2]
[398877852,1765953039825,-4283.20053851,0.00015911,2]
[398877853,1765953039836,-264.96252397,0.00015981,2]
[398877854,1765953039846,-2041.27,0.0001599,2]
[398877855,1765953039855,-2041.27,0.0001599,2]
[398877856,1765953039864,-2041.27,0.0001599,2]
[398877857,1765953039874,-2041.27,0.0001599,2]
[398877858,1765953039883,-2041.27,0.0001599,2]
[398877859,1765953039892,-151.0,0.00015997,2]
[398877860,1765953039901,-301.50559446,0.00015999,2]
[398877861,1765953039911,-500.0,0.00015999,2]
[398877862,1765953039920,-164.80259856,0.00015999,2]
[398877863,1765953039929,-459.00195281,0.00015999,2]
[398877864,1765953039938,-11112.25512909,0.00016,2]
[398877865,1765953039947,-144870.2598396,0.00016,2]
[398877866,1765953039956,-657891.49036407,0.00016,4]
[398877868,1765953039965,-4764.84667947,0.00016011,2]
[398877869,1765953039974,-166.66,0.00016013,2]
[398877870,1765953039982,-4283.2005385,0.00016021,2]
[398877871,1765953039991,-427.63,0.00016116,2]
[398877872,1765953040000,-1530.11,0.00016116,2]
[398877873,1765953040009,-150.99,0.00016116,2]
[398877874,1765953040018,-9999.99,0.00016116,2]
[398877875,1765953040027,-5061.74,0.00016116,2]
[398877876,1765953040036,-346.68,0.00016116,2]
[398877877,1765953040045,-4764.84667947,0.00016122,2]
[398877878,1765953040054,-4283.2005385,0.00016131,2]
[398877879,1765953040063,-522.13362004,0.00016168,2]
[398877880,1765953040072,-500.0,0.00016168,2]
[398877881,1765953040081,-537.90608687,0.00016168,2]
[398877882,1765953040090,-500.0,0.00016168,2]
[398877883,1765953040100,-738.16298262,0.00016181,2]
[398877884,1765953040109,-152.0,0.00016181,2]
[398877886,1765953040118,-152.0,0.00016181,2]
[398877887,1765953040127,-152.0,0.00016181,2]
[398877888,1765953040137,-152.0,0.00016181,2]
[398877889,1765953040146,-157.0,0.00016181,2]
[398877890,1765953040155,-152.0,0.00016181,2]
[398877891,1765953040164,-157.0,0.00016181,2]
[398877892,1765953040173,-152.0,0.00016181,2]
[398877893,1765953040183,-164.6658109,0.00016181,2]
[398877894,1765953040197,-152.0,0.00016181,2]
[398877895,1765953040206,-151.09147363,0.00016181,2]
[398877896,1765953040215,-5000.00321899,0.000162,5]
[398877897,1765953040224,-4764.84667947,0.00016233,2]
[398877898,1765953040235,-4283.2005385,0.00016241,2]
[398877899,1765953040244,-153.0,0.00016256,2]
[398877900,1765953040253,-153.0,0.00016256,2]
[398877901,1765953040263,-153.0,0.00016256,2]
[398877902,1765953040272,-1000.0,0.00016338,2]
[398877903,1765953040282,-4764.84667947,0.00016344,2]
[398877904,1765953040291,-4283.2005385,0.00016351,2]
[398877905,1765953040300,-264.96252396,0.00016423,2]
[398877906,1765953040309,-1405.65,0.00016438,2]
[398877907,1765953040320,-649.91974958,0.00016438,2]
[398877908,1765953040329,-649.91974958,0.00016438,2]
[398877909,1765953040339,-649.91974958,0.00016438,2]
[398877910,1765953040349,-649.91974958,0.00016438,2]
[398877911,1765953040358,-649.91974958,0.00016438,2]
[398877912,1765953040368,-649.91974958,0.00016438,2]
[398877913,1765953040377,-649.91974958,0.00016438,2]
[398877914,1765953040386,-649.91974958,0.00016438,2]
[398877915,1765953040396,-649.91974958,0.00016438,2]
[398877916,1765953040406,-649.91974958,0.00016438,2]
[398877917,1765953040416,-649.91974958,0.00016438,2]
[398877918,1765953040426,-649.91974958,0.00016438,2]
[398877919,1765953040435,-649.91974958,0.00016438,2]
[398877920,1765953040445,-649.91974958,0.00016438,2]
[398877921,1765953040454,-649.91974958,0.00016438,2]
[398877922,1765953040464,-649.91974958,0.00016438,2]
[398877923,1765953040473,-649.91974958,0.00016438,2]
[398877924,1765953040482,-649.91974958,0.00016438,2]
[398877925,1765953040491,-649.91974958,0.00016438,2]
[398877926,1765953040501,-649.91974958,0.00016438,2]
[398877927,1765953040510,-649.91974958,0.00016438,2]
[398877928,1765953040519,-649.91974958,0.00016438,2]
[398877929,1765953040528,-649.91974958,0.00016438,2]
[398877930,1765953040537,-649.91974958,0.00016438,2]
[398877931,1765953040547,-649.91974958,0.00016438,2]
[398877932,1765953040556,-649.91974958,0.00016438,2]
[398877933,1765953040565,-649.91974958,0.00016438,2]
[398877934,1765953040574,-649.91974958,0.00016438,2]
[398877935,1765953040583,-649.91974958,0.00016438,2]
[398877936,1765953040592,-649.91974958,0.00016438,2]
[398877937,1765953040602,-649.91974958,0.00016438,2]
[398877938,1765953040611,-649.91974958,0.00016438,2]
[398877939,1765953040620,-649.91974958,0.00016438,2]
[398877940,1765953040629,-649.91974958,0.00016438,2]
[398877941,1765953040639,-649.91974958,0.00016438,2]
[398877942,1765953040648,-649.91974958,0.00016438,2]
[398877943,1765953040657,-649.91974958,0.00016438,2]
[398877944,1765953040666,-649.91974958,0.00016438,2]
[398877945,1765953040675,-649.91974958,0.00016438,2]
[398877946,1765953040684,-649.91974958,0.00016438,2]
[398877947,1765953040695,-649.91974958,0.00016438,2]
[398877948,1765953040704,-649.91974958,0.00016438,2]
[398877949,1765953040713,-649.91974958,0.00016438,2]